[Event "Titled Tuesday Blitz October 18 Late 2022"]
[White "Fernandez Hernandez, Gerardo"]
[Black "Poltorak, Sebastian"]
[WhiteFideId "2207400"]
[BlackFideId "1199498"]
[WhiteElo "2197"]
[BlackElo "2232"]
[Result "0-1"]
[Round "02"]
[TimeControl "180+1"]
[Date "2022.10.19"]
[WhiteClock "0:00:03"]
[BlackClock "0:00:10"]

1. e4 {[%clk 0:03:00]}  Nc6 {[%clk 0:02:59]} 2. d3 {[%clk 0:02:53]}  Nf6 {[%clk 0:02:57]} 3. g3 {[%clk 0:02:52]}  d5 {[%clk 0:02:57]} 4. Nd2 {[%clk 0:02:51]}  dxe4 {[%clk 0:02:56]} 5. dxe4 {[%clk 0:02:51]}  e5 {[%clk 0:02:56]} 6. Bg2 {[%clk 0:02:50]}  Bc5 {[%clk 0:02:56]} 7. Ngf3 {[%clk 0:02:48]}  O-O {[%clk 0:02:55]} 8. O-O {[%clk 0:02:48]}  Bg4 {[%clk 0:02:52]} 9. h3 {[%clk 0:02:44]}  Bh5 {[%clk 0:02:51]} 10. c3 {[%clk 0:02:44]}  Bg6 {[%clk 0:02:44]} 11. Nh4 {[%clk 0:02:42]}  Qd3 {[%clk 0:02:43]} 12. Nb3 {[%clk 0:02:23]}  Bxf2+ {[%clk 0:01:49]} 13. Kxf2 {[%clk 0:02:16]}  Nxe4+ {[%clk 0:01:49]} 14. Kg1 {[%clk 0:01:58]}  Qxg3 {[%clk 0:01:47]} 15. Nxg6 {[%clk 0:01:55]}  Qxg6 {[%clk 0:01:44]} 16. Qg4 {[%clk 0:01:45]}  Qxg4 {[%clk 0:01:30]} 17. hxg4 {[%clk 0:01:45]}  Nd6 {[%clk 0:01:29]} 18. Be3 {[%clk 0:01:34]}  Nc4 {[%clk 0:01:25]} 19. Bc5 {[%clk 0:01:27]}  Rfd8 {[%clk 0:01:15]} 20. Bxc6 {[%clk 0:01:25]}  bxc6 {[%clk 0:01:14]} 21. Rf2 {[%clk 0:01:24]}  f6 {[%clk 0:01:04]} 22. Kf1 {[%clk 0:01:17]}  a5 {[%clk 0:01:02]} 23. Ke1 {[%clk 0:00:55]}  a4 {[%clk 0:01:01]} 24. Nc1 {[%clk 0:00:54]}  e4 {[%clk 0:00:50]} 25. a3 {[%clk 0:00:47]}  Rd5 {[%clk 0:00:49]} 26. Rf5 {[%clk 0:00:29]}  Rxf5 {[%clk 0:00:42]} 27. gxf5 {[%clk 0:00:29]}  Nxb2 {[%clk 0:00:43]} 28. Rb1 {[%clk 0:00:21]}  Nc4 {[%clk 0:00:40]} 29. Rb7 {[%clk 0:00:14]}  Rc8 {[%clk 0:00:32]} 30. Ra7 {[%clk 0:00:13]}  g6 {[%clk 0:00:13]} 31. fxg6 {[%clk 0:00:12]}  hxg6 {[%clk 0:00:14]} 32. Ne2 {[%clk 0:00:12]}  f5 {[%clk 0:00:14]} 33. Nf4 {[%clk 0:00:12]}  Kf7 {[%clk 0:00:14]} 34. Rxa4 {[%clk 0:00:11]}  Ne5 {[%clk 0:00:14]} 35. Ra7 {[%clk 0:00:07]}  g5 {[%clk 0:00:14]} 36. Bd4 {[%clk 0:00:07]}  Kf6 {[%clk 0:00:13]} 37. Ne2 {[%clk 0:00:06]}  f4 {[%clk 0:00:12]} 38. Kf2 {[%clk 0:00:06]}  e3+ {[%clk 0:00:11]} 39. Kg2 {[%clk 0:00:05]}  f3+ {[%clk 0:00:10]} 40. Kf1 {[%clk 0:00:03]}  fxe2+ {[%clk 0:00:11]} 41. Kxe2 {[%clk 0:00:04]}  g4 {[%clk 0:00:11]} 42. Ra5 {[%clk 0:00:05]}  Re8 {[%clk 0:00:11]} 43. Rxe5 {[%clk 0:00:04]}  Rxe5 {[%clk 0:00:12]} 44. a4 {[%clk 0:00:03]}  g3 {[%clk 0:00:04]} 45. Bxe5+ {[%clk 0:00:04]}  Kxe5 {[%clk 0:00:04]} 46. Kxe3 {[%clk 0:00:05]}  Kd5 {[%clk 0:00:04]} 47. a5 {[%clk 0:00:06]}  Kc5 {[%clk 0:00:05]} 48. Kf3 {[%clk 0:00:04]}  Kb5 {[%clk 0:00:05]} 49. Kxg3 {[%clk 0:00:05]}  Kxa5 {[%clk 0:00:06]} 50. Kf3 {[%clk 0:00:06]}  Kb5 {[%clk 0:00:06]} 51. Ke3 {[%clk 0:00:06]}  Kc4 {[%clk 0:00:07]} 52. Kd2 {[%clk 0:00:07]}  Kb3 {[%clk 0:00:08]} 53. Kd3 {[%clk 0:00:07]}  c5 {[%clk 0:00:08]} 54. Kd2 {[%clk 0:00:04]}  c4 {[%clk 0:00:08]} 55. Kd1 {[%clk 0:00:03]}  Kxc3 {[%clk 0:00:09]} 56. Kc1 {[%clk 0:00:03]}  c6 {[%clk 0:00:10]} 57. Kd1 {[%clk 0:00:03]}  Kb2 {[%clk 0:00:10]} 0-1


[Site "https://www.chess.com"]

[Event "Titled Tuesday Blitz October 18 Late 2022"]
[White "Gatterer, Florian"]
[Black "Girsh, Daniel"]
[WhiteFideId "811688"]
[BlackFideId "30949190"]
[WhiteElo "2218"]
[BlackElo "2075"]
[Result "0-1"]
[Round "02"]
[TimeControl "180+1"]
[Date "2022.10.19"]
[WhiteClock "0:00:11"]
[BlackClock "0:00:14"]

1. Nf3 {[%clk 0:03:00]}  d5 {[%clk 0:02:59]} 2. b3 {[%clk 0:03:00]}  Nf6 {[%clk 0:02:59]} 3. Bb2 {[%clk 0:03:00]}  Bf5 {[%clk 0:03:00]} 4. g3 {[%clk 0:02:58]}  e6 {[%clk 0:03:01]} 5. Bg2 {[%clk 0:02:59]}  Be7 {[%clk 0:03:01]} 6. O-O {[%clk 0:02:59]}  O-O {[%clk 0:03:02]} 7. d3 {[%clk 0:02:59]}  c5 {[%clk 0:03:01]} 8. Nbd2 {[%clk 0:02:59]}  Nc6 {[%clk 0:03:01]} 9. Re1 {[%clk 0:02:59]}  Bg6 {[%clk 0:03:00]} 10. e4 {[%clk 0:02:59]}  dxe4 {[%clk 0:02:53]} 11. dxe4 {[%clk 0:02:59]}  Nd4 {[%clk 0:02:51]} 12. Nxd4 {[%clk 0:02:52]}  cxd4 {[%clk 0:02:49]} 13. e5 {[%clk 0:02:53]}  Nd5 {[%clk 0:02:45]} 14. Bxd4 {[%clk 0:02:51]}  Nb4 {[%clk 0:02:45]} 15. c3 {[%clk 0:02:28]}  Nc2 {[%clk 0:02:44]} 16. Bxb7 {[%clk 0:02:25]}  Rb8 {[%clk 0:02:42]} 17. Be4 {[%clk 0:02:22]}  Nxa1 {[%clk 0:02:39]} 18. Qxa1 {[%clk 0:02:19]}  a5 {[%clk 0:02:30]} 19. h4 {[%clk 0:02:18]}  Qd7 {[%clk 0:02:12]} 20. Qd1 {[%clk 0:02:05]}  Rfc8 {[%clk 0:02:10]} 21. h5 {[%clk 0:02:00]}  Bxe4 {[%clk 0:02:07]} 22. Nxe4 {[%clk 0:02:00]}  h6 {[%clk 0:02:05]} 23. Qg4 {[%clk 0:01:56]}  Kh8 {[%clk 0:01:59]} 24. Qf4 {[%clk 0:01:45]}  Bf8 {[%clk 0:01:54]} 25. g4 {[%clk 0:01:35]}  a4 {[%clk 0:01:37]} 26. g5 {[%clk 0:01:35]}  hxg5 {[%clk 0:01:26]} 27. Nxg5 {[%clk 0:01:31]}  axb3 {[%clk 0:01:23]} 28. axb3 {[%clk 0:01:25]}  Rxb3 {[%clk 0:01:23]} 29. h6 {[%clk 0:01:07]}  gxh6 {[%clk 0:01:08]} 30. Nxf7+ {[%clk 0:00:48]}  Kh7 {[%clk 0:00:54]} 31. Re3 {[%clk 0:00:33]}  Rb1+ {[%clk 0:00:53]} 32. Kh2 {[%clk 0:00:31]}  Qd5 {[%clk 0:00:52]} 33. Rf3 {[%clk 0:00:24]}  Bg7 {[%clk 0:00:31]} 34. Nd6 {[%clk 0:00:17]}  Rf8 {[%clk 0:00:30]} 35. Nf7 {[%clk 0:00:16]}  Kg8 {[%clk 0:00:20]} 36. Nxh6+ {[%clk 0:00:12]}  Bxh6 {[%clk 0:00:19]} 37. Rg3+ {[%clk 0:00:12]}  Bg7 {[%clk 0:00:17]} 38. Rxg7+ {[%clk 0:00:12]}  Kxg7 {[%clk 0:00:16]} 39. Qg5+ {[%clk 0:00:12]}  Kf7 {[%clk 0:00:16]} 40. Qh5+ {[%clk 0:00:11]}  Ke7 {[%clk 0:00:15]} 41. Bc5+ {[%clk 0:00:11]}  Qxc5 {[%clk 0:00:15]} 42. Qh8 {[%clk 0:00:11]}  Qxf2+ {[%clk 0:00:14]} 0-1


[Site "https://www.chess.com"]

[Event "Titled Tuesday Blitz October 18 Late 2022"]
[White "Goltsev, Dmitry"]
[Black "Firouzja, Alireza"]
[WhiteFideId "24176710"]
[BlackFideId "12573981"]
[WhiteElo "2257"]
[BlackElo "2903"]
[Result "0-1"]
[Round "02"]
[TimeControl "180+1"]
[Date "2022.10.18"]
[WhiteClock "0:00:06"]
[BlackClock "0:00:35"]

1. e4 {[%clk 0:02:59]}  c5 {[%clk 0:02:59]} 2. Nf3 {[%clk 0:03:00]}  d6 {[%clk 0:02:59]} 3. d4 {[%clk 0:03:00]}  cxd4 {[%clk 0:03:00]} 4. Nxd4 {[%clk 0:03:01]}  Nf6 {[%clk 0:03:01]} 5. Nc3 {[%clk 0:03:01]}  Nc6 {[%clk 0:03:01]} 6. Be2 {[%clk 0:03:01]}  e5 {[%clk 0:03:01]} 7. Nb3 {[%clk 0:03:01]}  Be7 {[%clk 0:03:01]} 8. O-O {[%clk 0:02:59]}  O-O {[%clk 0:03:02]} 9. Be3 {[%clk 0:03:00]}  Be6 {[%clk 0:02:58]} 10. f3 {[%clk 0:02:58]}  a5 {[%clk 0:02:56]} 11. Nd2 {[%clk 0:02:48]}  Nd4 {[%clk 0:02:52]} 12. Bc4 {[%clk 0:02:44]}  Rc8 {[%clk 0:02:47]} 13. Bd3 {[%clk 0:02:29]}  d5 {[%clk 0:02:26]} 14. exd5 {[%clk 0:02:22]}  Nxd5 {[%clk 0:02:27]} 15. Nxd5 {[%clk 0:02:20]}  Qxd5 {[%clk 0:02:28]} 16. Re1 {[%clk 0:01:53]}  Rfd8 {[%clk 0:02:23]} 17. Bf2 {[%clk 0:01:50]}  Nxc2 {[%clk 0:02:20]} 18. Bxc2 {[%clk 0:01:45]}  Qxd2 {[%clk 0:02:20]} 19. Re2 {[%clk 0:01:46]}  Qxd1+ {[%clk 0:02:03]} 20. Bxd1 {[%clk 0:01:46]}  f6 {[%clk 0:01:59]} 21. Bb6 {[%clk 0:01:42]}  Bc5+ {[%clk 0:01:59]} 22. Bxc5 {[%clk 0:01:42]}  Rxc5 {[%clk 0:02:00]} 23. Bb3 {[%clk 0:01:43]}  Bxb3 {[%clk 0:01:53]} 24. axb3 {[%clk 0:01:44]}  Rb5 {[%clk 0:01:54]} 25. b4 {[%clk 0:01:39]}  axb4 {[%clk 0:01:50]} 26. Rc2 {[%clk 0:01:36]}  Rd7 {[%clk 0:01:41]} 27. h4 {[%clk 0:01:25]}  h5 {[%clk 0:01:39]} 28. Kh2 {[%clk 0:01:14]}  Rbd5 {[%clk 0:01:39]} 29. Rc4 {[%clk 0:01:11]}  Rd4 {[%clk 0:01:38]} 30. Rc8+ {[%clk 0:01:10]}  Kh7 {[%clk 0:01:38]} 31. Kg3 {[%clk 0:01:10]}  Rd2 {[%clk 0:01:38]} 32. Rb1 {[%clk 0:01:07]}  Re2 {[%clk 0:01:36]} 33. b3 {[%clk 0:01:01]}  Rdd2 {[%clk 0:01:34]} 34. Rg1 {[%clk 0:01:01]}  Rb2 {[%clk 0:01:31]} 35. Rc7 {[%clk 0:00:58]}  Rxb3 {[%clk 0:01:31]} 36. Rxb7 {[%clk 0:00:59]}  Rbb2 {[%clk 0:01:31]} 37. Kh3 {[%clk 0:00:56]}  Rf2 {[%clk 0:01:26]} 38. Kg3 {[%clk 0:00:41]}  Rfe2 {[%clk 0:01:16]} 39. Kh3 {[%clk 0:00:41]}  e4 {[%clk 0:01:17]} 40. Kg3 {[%clk 0:00:38]}  e3 {[%clk 0:01:10]} 41. Kf4 {[%clk 0:00:37]}  Rxg2 {[%clk 0:01:07]} 42. Rxg2 {[%clk 0:00:37]}  Rxg2 {[%clk 0:01:08]} 43. Kxe3 {[%clk 0:00:37]}  Rb2 {[%clk 0:01:09]} 44. Kf4 {[%clk 0:00:31]}  Kg6 {[%clk 0:01:07]} 45. Kg3 {[%clk 0:00:28]}  b3 {[%clk 0:01:07]} 46. Kh3 {[%clk 0:00:23]}  Rb1 {[%clk 0:01:06]} 47. Kg3 {[%clk 0:00:20]}  b2 {[%clk 0:00:52]} 48. Kg2 {[%clk 0:00:20]}  Kf5 {[%clk 0:00:51]} 49. Rb5+ {[%clk 0:00:16]}  Ke6 {[%clk 0:00:51]} 50. Rb8 {[%clk 0:00:16]}  g5 {[%clk 0:00:49]} 51. hxg5 {[%clk 0:00:14]}  fxg5 {[%clk 0:00:50]} 52. Kh2 {[%clk 0:00:12]}  h4 {[%clk 0:00:46]} 53. Kg2 {[%clk 0:00:12]}  h3+ {[%clk 0:00:42]} 54. Kh2 {[%clk 0:00:11]}  Kd5 {[%clk 0:00:42]} 55. Rb4 {[%clk 0:00:08]}  Kc5 {[%clk 0:00:41]} 56. Rb8 {[%clk 0:00:09]}  Kc4 {[%clk 0:00:40]} 57. Rb7 {[%clk 0:00:05]}  Kd3 {[%clk 0:00:40]} 58. Rb8 {[%clk 0:00:03]}  Ke3 {[%clk 0:00:40]} 59. Rb3+ {[%clk 0:00:03]}  Kf2 {[%clk 0:00:38]} 60. Rb8 {[%clk 0:00:02]}  Kxf3 {[%clk 0:00:38]} 61. Rb3+ {[%clk 0:00:03]}  Ke4 {[%clk 0:00:36]} 62. Rb4+ {[%clk 0:00:03]}  Kd5 {[%clk 0:00:36]} 63. Rb5+ {[%clk 0:00:04]}  Kc6 {[%clk 0:00:36]} 64. Rb8 {[%clk 0:00:05]}  g4 {[%clk 0:00:36]} 65. Rc8+ {[%clk 0:00:05]}  Kd7 {[%clk 0:00:36]} 66. Rc2 {[%clk 0:00:06]}  Rh1+ {[%clk 0:00:35]} 0-1


[Site "https://www.chess.com"]

[Event "Titled Tuesday Blitz October 18 Late 2022"]
[White "Golubev, Mikhail"]
[Black "Kobla, Vishal"]
[WhiteFideId "14100983"]
[BlackFideId "2078457"]
[WhiteElo "2374"]
[BlackElo "1972"]
[Result "1-0"]
[Round "02"]
[TimeControl "180+1"]
[Date "2022.10.19"]
[WhiteClock "0:01:47"]
[BlackClock "0:00:27"]

1. e4 {[%clk 0:03:00]}  c5 {[%clk 0:02:58]} 2. Nf3 {[%clk 0:03:00]}  Nc6 {[%clk 0:02:58]} 3. Nc3 {[%clk 0:02:59]}  g6 {[%clk 0:02:51]} 4. d4 {[%clk 0:02:58]}  cxd4 {[%clk 0:02:52]} 5. Nxd4 {[%clk 0:02:58]}  Bg7 {[%clk 0:02:48]} 6. Be3 {[%clk 0:02:58]}  d6 {[%clk 0:02:41]} 7. Qd2 {[%clk 0:02:54]}  Nf6 {[%clk 0:02:40]} 8. f3 {[%clk 0:02:54]}  O-O {[%clk 0:02:39]} 9. O-O-O {[%clk 0:02:54]}  Bd7 {[%clk 0:02:35]} 10. g4 {[%clk 0:02:52]}  Rc8 {[%clk 0:02:22]} 11. h4 {[%clk 0:02:50]}  Nxd4 {[%clk 0:02:11]} 12. Bxd4 {[%clk 0:02:50]}  b5 {[%clk 0:02:12]} 13. h5 {[%clk 0:02:26]}  b4 {[%clk 0:02:03]} 14. Nd5 {[%clk 0:02:26]}  Qa5 {[%clk 0:01:09]} 15. Nxe7+ {[%clk 0:02:18]}  Kh8 {[%clk 0:01:07]} 16. h6 {[%clk 0:02:14]}  Rxc2+ {[%clk 0:00:29]} 17. Kxc2 {[%clk 0:02:05]}  b3+ {[%clk 0:00:27]} 18. axb3 {[%clk 0:01:47]} 1-0


[Site "https://www.chess.com"]

[Event "Titled Tuesday Blitz October 18 Late 2022"]
[White "Gonzalez, Francisco Silva"]
[Black "Gubajdullin, Alexei"]
[WhiteFideId "1512285"]
[BlackFideId "4141202"]
[WhiteElo "2159"]
[BlackElo "2200"]
[Result "0-1"]
[Round "02"]
[TimeControl "180+1"]
[Date "2022.10.19"]
[WhiteClock "0:01:17"]
[BlackClock "0:00:36"]

1. d4 {[%clk 0:03:00]}  Nf6 {[%clk 0:02:53]} 2. c4 {[%clk 0:02:58]}  g6 {[%clk 0:02:53]} 3. Nc3 {[%clk 0:02:57]}  Bg7 {[%clk 0:02:52]} 4. e4 {[%clk 0:02:57]}  d6 {[%clk 0:02:53]} 5. f3 {[%clk 0:02:57]}  O-O {[%clk 0:02:52]} 6. Be3 {[%clk 0:02:57]}  Nc6 {[%clk 0:02:53]} 7. Nge2 {[%clk 0:02:57]}  a6 {[%clk 0:02:53]} 8. Rc1 {[%clk 0:02:57]}  Rb8 {[%clk 0:02:53]} 9. Qd2 {[%clk 0:02:56]}  Re8 {[%clk 0:02:51]} 10. b3 {[%clk 0:02:49]}  e6 {[%clk 0:02:37]} 11. Kf2 {[%clk 0:02:43]}  b6 {[%clk 0:02:33]} 12. g3 {[%clk 0:02:41]}  Bb7 {[%clk 0:02:32]} 13. h4 {[%clk 0:02:38]}  h5 {[%clk 0:02:30]} 14. Bh3 {[%clk 0:02:36]}  Ne7 {[%clk 0:02:29]} 15. b4 {[%clk 0:02:35]}  Nd7 {[%clk 0:02:26]} 16. f4 {[%clk 0:02:33]}  Nf6 {[%clk 0:02:22]} 17. e5 {[%clk 0:02:31]}  Ng4+ {[%clk 0:02:18]} 18. Bxg4 {[%clk 0:02:31]}  hxg4 {[%clk 0:02:18]} 19. Rh2 {[%clk 0:02:29]}  Nf5 {[%clk 0:02:17]} 20. h5 {[%clk 0:02:28]}  Qd7 {[%clk 0:01:52]} 21. Rd1 {[%clk 0:02:26]}  b5 {[%clk 0:01:51]} 22. c5 {[%clk 0:02:24]}  dxc5 {[%clk 0:01:47]} 23. dxc5 {[%clk 0:02:22]}  Qc6 {[%clk 0:01:47]} 24. Nd4 {[%clk 0:02:20]}  Nxd4 {[%clk 0:01:43]} 25. Bxd4 {[%clk 0:02:20]}  Qf3+ {[%clk 0:01:42]} 26. Kg1 {[%clk 0:02:21]}  Qxg3+ {[%clk 0:01:40]} 27. Rg2 {[%clk 0:02:17]}  Qxg2+ {[%clk 0:01:38]} 28. Qxg2 {[%clk 0:02:17]}  Bxg2 {[%clk 0:01:38]} 29. Kxg2 {[%clk 0:02:17]}  gxh5 {[%clk 0:01:38]} 30. Kg3 {[%clk 0:02:17]}  Rbd8 {[%clk 0:01:38]} 31. Kh4 {[%clk 0:02:17]}  c6 {[%clk 0:01:30]} 32. Kxh5 {[%clk 0:02:16]}  Rd7 {[%clk 0:01:30]} 33. Be3 {[%clk 0:02:13]}  Rxd1 {[%clk 0:01:28]} 34. Nxd1 {[%clk 0:02:13]}  Rd8 {[%clk 0:01:28]} 35. Nb2 {[%clk 0:02:12]}  f5 {[%clk 0:01:22]} 36. Kh4 {[%clk 0:02:02]}  Ra8 {[%clk 0:01:21]} 37. a4 {[%clk 0:02:01]}  a5 {[%clk 0:01:14]} 38. axb5 {[%clk 0:02:01]}  cxb5 {[%clk 0:01:14]} 39. bxa5 {[%clk 0:01:56]}  Ra7 {[%clk 0:01:14]} 40. c6 {[%clk 0:01:55]}  Rxa5 {[%clk 0:01:10]} 41. c7 {[%clk 0:01:53]}  Ra8 {[%clk 0:01:09]} 42. Ba7 {[%clk 0:01:52]}  Rc8 {[%clk 0:01:08]} 43. Bb8 {[%clk 0:01:52]}  Bf8 {[%clk 0:01:08]} 44. Nd3 {[%clk 0:01:48]}  Ba3 {[%clk 0:01:06]} 45. Kg5 {[%clk 0:01:47]}  g3 {[%clk 0:01:05]} 46. Kf6 {[%clk 0:01:43]}  g2 {[%clk 0:01:05]} 47. Ba7 {[%clk 0:01:42]}  Rxc7 {[%clk 0:01:05]} 48. Bf2 {[%clk 0:01:41]}  Rc3 {[%clk 0:01:02]} 49. Ne1 {[%clk 0:01:41]}  Rg3 {[%clk 0:00:49]} 50. Bg1 {[%clk 0:01:37]}  Bb4 {[%clk 0:00:46]} 51. Nc2 {[%clk 0:01:36]}  Rb3 {[%clk 0:00:41]} 52. Kxe6 {[%clk 0:01:34]}  Rb1 {[%clk 0:00:40]} 53. Be3 {[%clk 0:01:30]}  Bc3 {[%clk 0:00:39]} 54. Kxf5 {[%clk 0:01:29]}  b4 {[%clk 0:00:39]} 55. Ke6 {[%clk 0:01:28]}  b3 {[%clk 0:00:39]} 56. Na3 {[%clk 0:01:27]}  Ra1 {[%clk 0:00:39]} 57. Nc4 {[%clk 0:01:27]}  b2 {[%clk 0:00:38]} 58. Nxb2 {[%clk 0:01:26]}  Bxb2 {[%clk 0:00:38]} 59. f5 {[%clk 0:01:26]}  Re1 {[%clk 0:00:37]} 60. Bf2 {[%clk 0:01:19]}  Rxe5+ {[%clk 0:00:36]} 61. Kd6 {[%clk 0:01:18]}  Rxf5 {[%clk 0:00:36]} 62. Ke6 {[%clk 0:01:17]}  Rxf2 {[%clk 0:00:36]} 0-1


[Site "https://www.chess.com"]

[Event "Titled Tuesday Blitz October 18 Late 2022"]
[White "Gonzalez Vega, Alejandro"]
[Black "Petrovic, Aleksa"]
[WhiteFideId "3510042"]
[BlackFideId "967629"]
[WhiteElo "2264"]
[BlackElo "2242"]
[Result "0-1"]
[Round "02"]
[TimeControl "180+1"]
[Date "2022.10.19"]
[WhiteClock "0:00:02"]
[BlackClock "0:00:09"]

1. e4 {[%clk 0:02:55]}  c6 {[%clk 0:02:59]} 2. d4 {[%clk 0:02:53]}  d5 {[%clk 0:02:59]} 3. exd5 {[%clk 0:02:54]}  cxd5 {[%clk 0:02:59]} 4. Bd3 {[%clk 0:02:55]}  Nc6 {[%clk 0:02:59]} 5. c3 {[%clk 0:02:56]}  e5 {[%clk 0:02:59]} 6. dxe5 {[%clk 0:02:55]}  Nxe5 {[%clk 0:03:00]} 7. Bb5+ {[%clk 0:02:54]}  Nc6 {[%clk 0:03:00]} 8. Nf3 {[%clk 0:02:47]}  Nf6 {[%clk 0:02:58]} 9. h3 {[%clk 0:02:47]}  Bc5 {[%clk 0:02:56]} 10. O-O {[%clk 0:02:47]}  O-O {[%clk 0:02:56]} 11. Bd3 {[%clk 0:02:46]}  Qd6 {[%clk 0:02:56]} 12. Bg5 {[%clk 0:02:44]}  Bxh3 {[%clk 0:02:51]} 13. gxh3 {[%clk 0:02:39]}  Qg3+ {[%clk 0:02:51]} 14. Kh1 {[%clk 0:02:36]}  Qxh3+ {[%clk 0:02:50]} 15. Nh2 {[%clk 0:02:35]}  Ne5 {[%clk 0:02:39]} 16. Be2 {[%clk 0:02:19]}  Nf3 {[%clk 0:02:32]} 17. Bf4 {[%clk 0:02:02]}  Nxh2 {[%clk 0:02:02]} 18. Bxh2 {[%clk 0:02:01]}  Rfe8 {[%clk 0:01:59]} 19. Qd3 {[%clk 0:01:52]}  Qh4 {[%clk 0:01:45]} 20. Nd2 {[%clk 0:01:40]}  Bd6 {[%clk 0:00:57]} 21. f4 {[%clk 0:01:31]}  Bc5 {[%clk 0:00:55]} 22. Nf3 {[%clk 0:01:24]}  Qh6 {[%clk 0:00:48]} 23. Ne5 {[%clk 0:01:16]}  Ne4 {[%clk 0:00:39]} 24. Rf3 {[%clk 0:00:19]}  Nf2+ {[%clk 0:00:34]} 25. Rxf2 {[%clk 0:00:19]}  Bxf2 {[%clk 0:00:35]} 26. Rf1 {[%clk 0:00:18]}  Bh4 {[%clk 0:00:30]} 27. Qxd5 {[%clk 0:00:17]}  Re7 {[%clk 0:00:27]} 28. Bc4 {[%clk 0:00:15]}  Bg3 {[%clk 0:00:24]} 29. Qg2 {[%clk 0:00:14]}  Bxf4 {[%clk 0:00:16]} 30. Rxf4 {[%clk 0:00:09]}  Rxe5 {[%clk 0:00:16]} 31. Bxf7+ {[%clk 0:00:09]}  Kh8 {[%clk 0:00:16]} 32. Rf1 {[%clk 0:00:09]}  Rf8 {[%clk 0:00:13]} 33. Qg3 {[%clk 0:00:07]}  Qc6+ {[%clk 0:00:12]} 34. Qg2 {[%clk 0:00:05]}  Qh6 {[%clk 0:00:10]} 35. Bc4 {[%clk 0:00:03]}  Rxf1+ {[%clk 0:00:09]} 36. Qxf1 {[%clk 0:00:04]}  Qc6+ {[%clk 0:00:09]} 37. Kg1 {[%clk 0:00:02]}  Rg5+ {[%clk 0:00:09]} 0-1


[Site "https://www.chess.com"]

[Event "Titled Tuesday Blitz October 18 Late 2022"]
[White "Gorodetzky, David"]
[Black "Mortazavi, Ali"]
[WhiteFideId "2813416"]
[BlackFideId "401323"]
[WhiteElo "2487"]
[BlackElo "2339"]
[Result "1-0"]
[Round "02"]
[TimeControl "180+1"]
[Date "2022.10.18"]
[WhiteClock "0:00:50"]
[BlackClock "0:00:13"]

1. c4 {[%clk 0:02:55]}  Nf6 {[%clk 0:02:59]} 2. Nc3 {[%clk 0:02:54]}  g6 {[%clk 0:02:59]} 3. d4 {[%clk 0:02:53]}  d6 {[%clk 0:03:00]} 4. e4 {[%clk 0:02:52]}  Bg7 {[%clk 0:03:01]} 5. Be2 {[%clk 0:02:51]}  O-O {[%clk 0:03:02]} 6. Nf3 {[%clk 0:02:44]}  Bg4 {[%clk 0:03:02]} 7. Be3 {[%clk 0:02:42]}  Nbd7 {[%clk 0:03:02]} 8. O-O {[%clk 0:02:40]}  e5 {[%clk 0:03:03]} 9. d5 {[%clk 0:02:40]}  a5 {[%clk 0:03:03]} 10. Ne1 {[%clk 0:02:38]}  Bxe2 {[%clk 0:03:04]} 11. Qxe2 {[%clk 0:02:38]}  Nh5 {[%clk 0:03:04]} 12. Nd3 {[%clk 0:02:37]}  b6 {[%clk 0:03:05]} 13. g4 {[%clk 0:02:18]}  Nf4 {[%clk 0:02:58]} 14. Nxf4 {[%clk 0:02:18]}  exf4 {[%clk 0:02:59]} 15. Bxf4 {[%clk 0:02:19]}  Bxc3 {[%clk 0:02:46]} 16. bxc3 {[%clk 0:02:20]}  Re8 {[%clk 0:02:45]} 17. Rae1 {[%clk 0:02:15]}  a4 {[%clk 0:02:35]} 18. g5 {[%clk 0:02:11]}  a3 {[%clk 0:02:32]} 19. h4 {[%clk 0:02:10]}  Ra4 {[%clk 0:02:27]} 20. Rd1 {[%clk 0:01:59]}  Qe7 {[%clk 0:02:12]} 21. Rd4 {[%clk 0:01:58]}  Raa8 {[%clk 0:01:53]} 22. f3 {[%clk 0:01:58]}  Qf8 {[%clk 0:01:50]} 23. Kg2 {[%clk 0:01:56]}  Qg7 {[%clk 0:01:40]} 24. Qf2 {[%clk 0:01:50]}  f6 {[%clk 0:01:25]} 25. Qg3 {[%clk 0:01:43]}  Rf8 {[%clk 0:01:21]} 26. Bc1 {[%clk 0:01:36]}  fxg5 {[%clk 0:01:12]} 27. hxg5 {[%clk 0:01:37]}  Nc5 {[%clk 0:01:00]} 28. Be3 {[%clk 0:01:27]}  Na4 {[%clk 0:00:59]} 29. Rd3 {[%clk 0:01:24]}  Nb2 {[%clk 0:00:58]} 30. Bd4 {[%clk 0:01:22]}  Qf7 {[%clk 0:00:58]} 31. Rd2 {[%clk 0:01:21]}  Nxc4 {[%clk 0:00:58]} 32. Rdf2 {[%clk 0:01:21]}  Rae8 {[%clk 0:00:56]} 33. Rh1 {[%clk 0:01:19]}  Nb2 {[%clk 0:00:53]} 34. Rh4 {[%clk 0:01:08]}  Nd3 {[%clk 0:00:52]} 35. Rf1 {[%clk 0:01:08]}  Nf4+ {[%clk 0:00:49]} 36. Kh2 {[%clk 0:01:09]}  Ne2 {[%clk 0:00:46]} 37. Qg4 {[%clk 0:01:04]}  Nxd4 {[%clk 0:00:41]} 38. cxd4 {[%clk 0:01:05]}  Qg7 {[%clk 0:00:39]} 39. Rd1 {[%clk 0:01:05]}  Rf7 {[%clk 0:00:38]} 40. Qg3 {[%clk 0:01:03]}  Ref8 {[%clk 0:00:38]} 41. Rd3 {[%clk 0:01:03]}  Ra8 {[%clk 0:00:33]} 42. Kg2 {[%clk 0:00:58]}  Ra4 {[%clk 0:00:27]} 43. Rf4 {[%clk 0:00:57]}  Rxd4 {[%clk 0:00:26]} 44. Rxa3 {[%clk 0:00:54]}  Rd2+ {[%clk 0:00:24]} 45. Kh3 {[%clk 0:00:55]}  Rd1 {[%clk 0:00:13]} 46. Ra8+ {[%clk 0:00:52]}  Qf8 {[%clk 0:00:13]} 47. Rxf8+ {[%clk 0:00:51]}  Rxf8 {[%clk 0:00:13]} 48. Rxf8+ {[%clk 0:00:51]}  Kxf8 {[%clk 0:00:14]} 49. Qg4 {[%clk 0:00:51]}  Rd3 {[%clk 0:00:12]} 50. Qc8+ {[%clk 0:00:50]}  Kg7 {[%clk 0:00:12]} 51. Qxc7+ {[%clk 0:00:51]}  Kg8 {[%clk 0:00:13]} 52. Qd8+ {[%clk 0:00:50]}  Kg7 {[%clk 0:00:13]} 53. Qf6+ {[%clk 0:00:50]} 1-0


[Site "https://www.chess.com"]